Workbook

Sheet 2017
A1: 2017年度新能源汽车推广应用补助资金清算审核车辆信息表
A2: 地区 | B2: 序号 | C2: 车辆生产企业 | D2: 车辆型号 | E2: 申报推广数 （辆） | F2: 申请补助标准 （万元） | G2: 申请清算资金 （万元） | H2: 核定推广数 （辆） | I2: 核定补助标准 （万元） | J2: 应清算补助资金 （万元） | K2: 按整车企业取整后补助资金（万元） | L2: 核减原因 | M2: 此前待扣回预拨资金（万元） | N2: 此次扣回预拨资金（万元） | O2: 扣回相应预拨资金后剩余资金（万元）
A3: 总计 | E3: =SUM(E4:E62)/3 -> 24179 | G3: =SUM(G4:G62)/3 -> 105469.349 | H3: =SUM(H4:H62)/3 -> 22193 | J3: =SUM(J4:J62)/3 -> 88878.0156 | K3: =SUM(K4:K55)/2 -> 88877 | M3: =SUM(M4:M55)/2 -> 0 | N3: =SUM(N4:N55)/2 -> 0 | O3: =SUM(O4:O55)/2 -> 88877
A4: 北京市 | B4: 合计 | E4: =SUM(E5:E10)/2 -> 21457 | G4: =SUM(G5:G10)/2 -> 82775.52 | H4: =SUM(H5:H10)/2 -> 21303 | J4: =SUM(J5:J10)/2 -> 82181.16 | K4: =K5 -> 82181 | M4: =M5 -> 0 | N4: =N5 -> 0 | O4: =O5 -> 82181
B5: 1 | C5: 北京新能源汽车股份有限公司 | D5: 小计 | E5: =SUM(E6:E10) -> 21457 | G5: =SUM(G6:G10) -> 82775.52 | H5: =SUM(H6:H10) -> 21303 | J5: =SUM(J6:J10) -> 82181.16 | K5: =ROUND(J5,0) -> 82181 | M5: 0 | N5: 0 | O5: =K5-N5 -> 82181
D6: BJ7001BPH1-BEV | E6: 1959 | F6: 3.6 | G6: =E6*F6 -> 7052.4 | H6: 1940 | I6: 3.6 | J6: =H6*I6 -> 6984 | L6: 核减19辆，原因为：车辆注册登记信息有误,现场核查不通过
D7: BJ7001BPH2-BEV | E7: 1330 | F7: 3.6 | G7: =E7*F7 -> 4788 | H7: 1315 | I7: 3.6 | J7: =H7*I7 -> 4734 | L7: 核减15辆，原因为：车辆注册登记信息有误,现场核查不通过
D8: BJ7001BPH5-BEV | E8: 5611 | F8: 3.96 | G8: =E8*F8 -> 22219.56 | H8: 5597 | I8: 3.96 | J8: =H8*I8 -> 22164.12 | L8: 核减14辆，原因为：车辆注册登记信息有误
D9: BJ7001BPH7-BEV | E9: 9751 | F9: 3.96 | G9: =E9*F9 -> 38613.96 | H9: 9654 | I9: 3.96 | J9: =H9*I9 -> 38229.84 | L9: 核减97辆，原因为：车辆注册登记信息有误,现场核查不通过
D10: BJ7001BPH8-BEV | E10: 2806 | F10: 3.6 | G10: =E10*F10 -> 10101.6 | H10: 2797 | I10: 3.6 | J10: =H10*I10 -> 10069.2 | L10: 核减9辆，原因为：车辆注册登记信息有误
A11: 大连市 | B11: 合计 | E11: =SUM(E12:E17)/2 -> 290 | G11: =SUM(G12:G17)/2 -> 2217.2434 | H11: =SUM(H12:H17)/2 -> 0 | J11: =SUM(J12:J17)/2 -> 0 | K11: =K12 -> 0 | M11: =M12 -> 0 | N11: =N12 -> 0 | O11: =O12 -> 0
B12: 1 | C12: 大连氢锋客车有限公司 | D12: 小计 | E12: =SUM(E13:E17) -> 290 | G12: =SUM(G13:G17) -> 2217.2434 | H12: =SUM(H13:H17) -> 0 | J12: =SUM(J13:J17) -> 0 | K12: =ROUND(J12,0) -> 0 | M12: 0 | N12: 0 | O12: =K12-N12 -> 0
D13: CA5020XXYBEV31 | E13: 151 | F13: 6.18 | G13: =E13*F13 -> 933.18 | H13: 0 | I13: 0 | J13: =H13*I13 -> 0 | L13: 核减151辆，原因为：车辆注册登记信息有误,现场核查不通过
D14: CA5020XXYBEV32 | E14: 25 | F14: 6.18 | G14: =E14*F14 -> 154.5 | H14: 0 | I14: 0 | J14: =H14*I14 -> 0 | L14: 核减25辆，原因为：现场核查不通过
D15: CA5040XXYBEV31 | E15: 109 | F15: 9.4 | G15: =E15*F15 -> 1024.6 | H15: 0 | I15: 0 | J15: =H15*I15 -> 0 | L15: 核减109辆，原因为：车辆注册登记信息有误,现场核查不通过
D16: CA6103URHEV31 | E16: 2 | F16: 8.064 | G16: =E16*F16 -> 16.128 | H16: 0 | I16: 0 | J16: =H16*I16 -> 0 | L16: 核减2辆，原因为：现场核查不通过
D17: CA6109URBEV34 | E17: 3 | F17: 29.6118 | G17: =E17*F17 -> 88.8354 | H17: 0 | I17: 0 | J17: =H17*I17 -> 0 | L17: 核减3辆，原因为：现场核查不通过
A18: 广西壮族自治区 | B18: 合计 | E18: =SUM(E19:E22)/2 -> 448 | G18: =SUM(G19:G22)/2 -> 1661.16 | H18: =SUM(H19:H22)/2 -> 444 | J18: =SUM(J19:J22)/2 -> 1646.76 | K18: =K19 -> 1647 | M18: =M19 -> 0 | N18: =N19 -> 0 | O18: =O19 -> 1647
B19: 1 | C19: 东风柳州汽车有限公司 | D19: 小计 | E19: =SUM(E20:E22) -> 448 | G19: =SUM(G20:G22) -> 1661.16 | H19: =SUM(H20:H22) -> 444 | J19: =SUM(J20:J22) -> 1646.76 | K19: =ROUND(J19,0) -> 1647 | M19: 0 | N19: 0 | O19: =K19-N19 -> 1647
D20: EQ6510LM5F1BEV | E20: 248 | F20: 3.6 | G20: =E20*F20 -> 892.8 | H20: 245 | I20: 3.6 | J20: =H20*I20 -> 882 | L20: 核减3辆，原因为：车辆注册登记信息有误,现场核查不通过
D21: EQ7000LS1F1BEV | E21: 39 | F21: 4.84 | G21: =E21*F21 -> 188.76 | H21: 39 | I21: 4.84 | J21: =H21*I21 -> 188.76
D22: LZ6510MLAEV | E22: 161 | F22: 3.6 | G22: =E22*F22 -> 579.6 | H22: 160 | I22: 3.6 | J22: =H22*I22 -> 576 | L22: 核减1辆，原因为：车辆注册登记信息有误
A23: 湖北省 | B23: 合计 | E23: =SUM(E24:E33)/2 -> 1088 | G23: =SUM(G24:G33)/2 -> 8970.952 | H23: =SUM(H24:H33)/2 -> 239 | J23: =SUM(J24:J33)/2 -> 3464.468 | K23: =K24+K31 -> 3464 | M23: =M24+M31 -> 0 | N23: =N24+N31 -> 0 | O23: =O24+O31 -> 3464
B24: 1 | C24: 湖北三环汽车有限公司 | D24: 小计 | E24: =SUM(E25:E30) -> 248 | G24: =SUM(G25:G30) -> 3578.152 | H24: =SUM(H25:H30) -> 239 | J24: =SUM(J25:J30) -> 3464.468 | K24: =ROUND(J24,0) -> 3464 | M24: 0 | N24: 0 | O24: =K24-N24 -> 3464
D25: STQ3251L10Y2SBEV | E25: 8 | F25: 14.9 | G25: =E25*F25 -> 119.2 | H25: 4 | I25: 14.9 | J25: =H25*I25 -> 59.6 | L25: 核减4辆，原因为：驱动电机型号、生产企业与推荐目录不一致
D26: STQ4181L02Y4NBEV | E26: 210 | F26: 14.9 | G26: 3129 | H26: 209 | I26: 14.9 | J26: 3114.1 | L26: 核减1辆，原因为：车辆注册登记信息有误
D27: STQ5046XXYNBEV | E27: 19 | F27: 9.796 | G27: 186.124 | H27: 15 | I27: 9.796 | J27: 146.94 | L27: 核减4辆，原因为：车辆注册登记信息有误
D28: STQ5049XXYNBEV | E28: 1 | F28: 10.14 | G28: 10.14 | H28: 1 | I28: 10.14 | J28: 10.14
D29: STQ5074XXYNBEV | E29: 3 | F29: 9.796 | G29: 29.388 | H29: 3 | I29: 9.796 | J29: 29.388
D30: STQ5181XXYNBEV | E30: 7 | F30: 14.9 | G30: 104.3 | H30: 7 | I30: 14.9 | J30: 104.3
B31: 2 | C31: 湖北世纪中远车辆有限公司 | D31: 小计 | E31: =SUM(E32:E33) -> 840 | G31: =SUM(G32:G33) -> 5392.8 | H31: =SUM(H32:H33) -> 0 | J31: =SUM(J32:J33) -> 0 | K31: =ROUND(J31,0) -> 0 | M31: 0 | N31: 0 | O31: =K31-N31 -> 0
D32: ZYP5043XXYBEV | E32: 594 | F32: 6.42 | G32: =E32*F32 -> 3813.48 | H32: 0 | I32: 0 | J32: =H32*I32 -> 0 | L32: 核减594辆，原因为：车辆注册登记信息有误,现场核查不通过
D33: ZYP5043XXYBEV1 | E33: 246 | F33: 6.42 | G33: =E33*F33 -> 1579.32 | H33: 0 | I33: 0 | J33: =H33*I33 -> 0 | L33: 核减246辆，原因为：车辆注册登记信息有误,现场核查不通过
A34: 江苏省 | B34: 合计 | E34: =SUM(E35:E47)/2 -> 681 | G34: =SUM(G35:G47)/2 -> 8220.126 | H34: =SUM(H35:H47)/2 -> 0 | J34: =SUM(J35:J47)/2 -> 0 | K34: =K35 -> 0 | M34: =M35 -> 0 | N34: =N35 -> 0 | O34: =O35 -> 0
B35: 1 | C35: 江苏陆地方舟新能源车辆股份有限公司 | D35: 小计 | E35: =SUM(E36:E47) -> 681 | G35: =SUM(G36:G47) -> 8220.126 | H35: =SUM(H36:H47) -> 0 | J35: =SUM(J36:J47) -> 0 | K35: =ROUND(J35,0) -> 0 | M35: 0 | N35: 0 | O35: =K35-N35 -> 0
D36: RQ5022XXYEVH9 | E36: 34 | F36: 7.206 | G36: =E36*F36 -> 245.004 | H36: 0 | I36: 0 | J36: =H36*I36 -> 0 | L36: 核减34辆，原因为：车辆注册登记信息有误,现场核查不通过
D37: RQ5022XXYEVHF | E37: 41 | F37: 7.336 | G37: 300.776 | H37: 0 | I37: 0 | J37: 0 | L37: 核减41辆，原因为：现场核查不通过
D38: RQ5022XXYEVHJ | E38: 65 | F38: 7.206 | G38: 468.39 | H38: 0 | I38: 0 | J38: 0 | L38: 核减65辆，原因为：车辆注册登记信息有误,现场核查不通过
D39: RQ5026XXYEVH0 | E39: 46 | F39: 6.24 | G39: 287.04 | H39: 0 | I39: 0 | J39: 0 | L39: 核减46辆，原因为：车辆注册登记信息有误,现场核查不通过
D40: RQ5026XXYEVH0 | E40: 25 | F40: 7.206 | G40: 180.15 | H40: 0 | I40: 0 | J40: 0 | L40: 核减25辆，原因为：车辆注册登记信息有误,现场核查不通过
D41: RQ5026XXYEVH2 | E41: 58 | F41: 6.6024 | G41: 382.9392 | H41: 0 | I41: 0 | J41: 0 | L41: 核减58辆，原因为：现场核查不通过
D42: RQ5026XXYEVH3 | E42: 1 | F42: 7.206 | G42: 7.206 | H42: 0 | I42: 0 | J42: 0 | L42: 核减1辆，原因为：现场核查不通过
D43: RQ5026XXYEVH3 | E43: 96 | F43: 7.336 | G43: 704.256 | H43: 0 | I43: 0 | J43: 0 | L43: 核减96辆，原因为：车辆注册登记信息有误,现场核查不通过
D44: RQ6110YEVH3 | E44: 59 | F44: 27.2448 | G44: 1607.4432 | H44: 0 | I44: 0 | J44: 0 | L44: 核减59辆，原因为：车辆注册登记信息有误,现场核查不通过
D45: RQ6830YEVH10 | E45: 22 | F45: 13.2768 | G45: 292.0896 | H45: 0 | I45: 0 | J45: 0 | L45: 核减22辆，原因为：车辆注册登记信息有误,现场核查不通过
D46: RQ6830YEVH11 | E46: 4 | F46: 12.988 | G46: 51.952 | H46: 0 | I46: 0 | J46: 0 | L46: 核减4辆，原因为：现场核查不通过
D47: RQ6830YEVH8 | E47: 230 | F47: 16.056 | G47: 3692.88 | H47: 0 | I47: 0 | J47: 0 | L47: 核减230辆，原因为：车辆注册登记信息有误,现场核查不通过
A48: 江西省 | B48: 合计 | E48: =SUM(E49:E50)/2 -> 40 | G48: =SUM(G49:G50)/2 -> 144 | H48: =SUM(H49:H50)/2 -> 40 | J48: =SUM(J49:J50)/2 -> 144 | K48: =K49 -> 144 | M48: =M49 -> 0 | N48: =N49 -> 0 | O48: =O49 -> 144
B49: 1 | C49: 江西志骋汽车有限责任公司 | D49: 小计 | E49: =SUM(E50) -> 40 | G49: =SUM(G50) -> 144 | H49: =SUM(H50) -> 40 | J49: =SUM(J50) -> 144 | K49: =ROUND(J49,0) -> 144 | M49: 0 | N49: 0 | O49: =K49-N49 -> 144
D50: CH7000BEVH2CA | E50: 40 | F50: 3.6 | G50: =E50*F50 -> 144 | H50: 40 | I50: 3.6 | J50: =H50*I50 -> 144
A51: 山东省 | B51: 合计 | E51: =SUM(E52:E53)/2 -> 5 | G51: =SUM(G52:G53)/2 -> 19.44 | H51: =SUM(H52:H53)/2 -> 5 | J51: =SUM(J52:J53)/2 -> 19.44 | K51: =K52 -> 19 | M51: =M52 -> 0 | N51: =N52 -> 0 | O51: =O52 -> 19
B52: 1 | C52: 浙江飞碟汽车制造有限公司五征分公司 | D52: 小计 | E52: =SUM(E53) -> 5 | G52: =SUM(G53) -> 19.44 | H52: =SUM(H53) -> 5 | J52: =SUM(J53) -> 19.44 | K52: =ROUND(J52,0) -> 19 | M52: 0 | N52: 0 | O52: =K52-N52 -> 19
D53: FD5024XXYBEV | E53: 5 | F53: 3.888 | G53: =E53*F53 -> 19.44 | H53: 5 | I53: 3.888 | J53: =H53*I53 -> 19.44
A54: 四川省 | B54: 合计 | E54: =SUM(E55:E62)/2 -> 170 | G54: =SUM(G55:G62)/2 -> 1460.9076 | H54: =SUM(H55:H62)/2 -> 162 | J54: =SUM(J55:J62)/2 -> 1422.1876 | K54: =K55 -> 1422 | M54: =M55 -> 0 | N54: =N55 -> 0 | O54: =O55 -> 1422
B55: 1 | C55: 四川野马汽车股份有限公司 | D55: 小计 | E55: =SUM(E56:E62) -> 170 | G55: =SUM(G56:G62) -> 1460.9076 | H55: =SUM(H56:H62) -> 162 | J55: =SUM(J56:J62) -> 1422.1876 | K55: =ROUND(J55,0) -> 1422 | M55: 0 | N55: 0 | O55: =K55-N55 -> 1422
D56: SQJ5020XXYM1BEV | E56: 2 | F56: 6.5604 | G56: =E56*F56 -> 13.1208 | H56: 2 | I56: 6.5604 | J56: =H56*I56 -> 13.1208
D57: SQJ6100S1BEV | E57: 6 | F57: 29.8598 | G57: 179.1588 | H57: 6 | I57: 29.8598 | J57: 179.1588
D58: SQJ6101S1BEV | E58: 3 | F58: 29.916 | G58: 89.748 | H58: 3 | I58: 29.916 | J58: 89.748
D59: SQJ6460B2BEV | E59: 119 | F59: 4.84 | G59: 575.96 | H59: 111 | I59: 4.84 | J59: 537.24 | L59: 核减8辆，原因为：车辆注册登记信息有误
D60: SQJ6460M1BEV | E60: 13 | F60: 4.84 | G60: 62.92 | H60: 13 | I60: 4.84 | J60: 62.92
D61: SQJ6810S2BEV | E61: 10 | F61: 20 | G61: 200 | H61: 10 | I61: 20 | J61: 200
D62: SQJ6811S1BEV | E62: 17 | F62: 20 | G62: 340 | H62: 17 | I62: 20 | J62: 340
